[Event "Early-Titled-Tuesday-Blitz-April-02-2024"]
[Site "Chess.com"]
[Date "2024.04.02"]
[Round "8"]
[White "OriTaichman"]
[Black "Zkid"]
[Result "0-1"]
[WhiteElo "2566"]
[BlackElo "2880"]
[TimeControl "180+1"]
[EndTime "9:29:42 PDT"]
[Termination "Zkid won by resignation"]

1. e4 {[%clk 0:03:00.9]} 1... c5 {[%clk 0:02:59.5]} 2. Nf3 {[%clk 0:03:00.4]}
2... d6 {[%clk 0:03:00]} 3. d4 {[%clk 0:03:00]} 3... cxd4 {[%clk 0:03:00.9]} 4.
Nxd4 {[%clk 0:03:00.5]} 4... Nf6 {[%clk 0:03:01.5]} 5. Nc3 {[%clk 0:03:01.2]}
5... Nc6 {[%clk 0:03:01.8]} 6. Bg5 {[%clk 0:03:01.5]} 6... e6 {[%clk 0:03:01.9]}
7. Qd2 {[%clk 0:03:01.5]} 7... a6 {[%clk 0:03:01.5]} 8. O-O-O {[%clk 0:03:01.4]}
8... Bd7 {[%clk 0:03:02.1]} 9. f4 {[%clk 0:03:00]} 9... Be7 {[%clk 0:03:01.1]}
10. Kb1 {[%clk 0:02:51.1]} 10... b5 {[%clk 0:02:59.5]} 11. Nxc6 {[%clk
0:02:43.7]} 11... Bxc6 {[%clk 0:02:59.4]} 12. Bd3 {[%clk 0:02:44.4]} 12... b4
{[%clk 0:02:54.4]} 13. Ne2 {[%clk 0:02:31.5]} 13... Nxe4 {[%clk 0:02:53.8]} 14.
Bxe4 {[%clk 0:02:25.7]} 14... Bxe4 {[%clk 0:02:54.7]} 15. Bxe7 {[%clk 0:02:17]}
15... Qxe7 {[%clk 0:02:52.7]} 16. Qxb4 {[%clk 0:02:16.2]} 16... d5 {[%clk
0:02:52.4]} 17. Qa4+ {[%clk 0:02:12.9]} 17... Qd7 {[%clk 0:02:52.5]} 18. Qxd7+
{[%clk 0:02:02.9]} 18... Kxd7 {[%clk 0:02:52.4]} 19. Nc3 {[%clk 0:01:59.4]}
19... Bf5 {[%clk 0:02:47.6]} 20. Rd2 {[%clk 0:01:45.5]} 20... Rac8 {[%clk
0:02:40.8]} 21. Re1 {[%clk 0:01:41.1]} 21... Rc5 {[%clk 0:02:12.7]} 22. Ne2
{[%clk 0:01:11.9]} 22... Ke7 {[%clk 0:02:04.8]} 23. Nd4 {[%clk 0:01:12]} 23...
Be4 {[%clk 0:02:03.6]} 24. g3 {[%clk 0:01:07.6]} 24... h5 {[%clk 0:02:02.9]} 25.
Ka1 {[%clk 0:01:04.9]} 25... h4 {[%clk 0:02:00.9]} 26. g4 {[%clk 0:01:05.2]}
26... f6 {[%clk 0:01:50.5]} 27. c3 {[%clk 0:00:51.6]} 27... h3 {[%clk
0:01:36.2]} 28. Re3 {[%clk 0:00:46.7]} 28... Rh4 {[%clk 0:01:26.5]} 29. Rg3
{[%clk 0:00:30.3]} 29... g6 {[%clk 0:00:56.6]} 30. b4 {[%clk 0:00:29.6]} 30...
Rc4 {[%clk 0:00:51.2]} 31. Kb2 {[%clk 0:00:28.5]} 31... e5 {[%clk 0:00:49.5]}
32. Ne2 {[%clk 0:00:22.1]} 32... Ke6 {[%clk 0:00:35.8]} 33. a4 {[%clk
0:00:21.5]} 33... Bg2 {[%clk 0:00:30.5]} 34. fxe5 {[%clk 0:00:15.3]} 34... fxe5
{[%clk 0:00:31.4]} 35. b5 {[%clk 0:00:14.8]} 35... Rxa4 {[%clk 0:00:27.8]} 36.
bxa6 {[%clk 0:00:14.4]} 36... Rxa6 {[%clk 0:00:26.5]} 37. c4 {[%clk 0:00:11.9]}
37... d4 {[%clk 0:00:21.4]} 38. Nxd4+ {[%clk 0:00:11.9]} 38... exd4 {[%clk
0:00:21.1]} 39. Rxd4 {[%clk 0:00:12.8]} 39... Rh8 {[%clk 0:00:19.5]} 40. Re3+
{[%clk 0:00:12.8]} 40... Kf6 {[%clk 0:00:19.9]} 41. g5+ {[%clk 0:00:08.9]} 41...
Kxg5 {[%clk 0:00:20.1]} 42. Rg3+ {[%clk 0:00:08]} 42... Kf6 {[%clk 0:00:19.5]}
43. Rf4+ {[%clk 0:00:08.1]} 43... Ke5 {[%clk 0:00:19.8]} 44. Rfg4 {[%clk
0:00:07.2]} 44... Rb8+ {[%clk 0:00:19.8]} 45. Kc3 {[%clk 0:00:07.3]} 45... Ra3+
{[%clk 0:00:19.7]} 46. Kd2 {[%clk 0:00:07.9]} 46... Rxg3 {[%clk 0:00:18.2]} 47.
Rxg3 {[%clk 0:00:08.8]} 47... Be4 {[%clk 0:00:16.6]} 48. c5 {[%clk 0:00:05.2]}
48... Kd4 {[%clk 0:00:16.4]} 49. c6 {[%clk 0:00:05.1]} 49... Rb2+ {[%clk
0:00:16.2]} 50. Kc1 {[%clk 0:00:05.6]} 50... Rc2+ {[%clk 0:00:16.4]} 51. Kd1
{[%clk 0:00:05.7]} 51... Rxc6 {[%clk 0:00:16.1]} 52. Rxh3 {[%clk 0:00:06.3]}
52... Ra6 {[%clk 0:00:15.9]} 53. Ke1 {[%clk 0:00:05.9]} 53... Ra2 {[%clk
0:00:14.1]} 54. Kd1 {[%clk 0:00:03.1]} 54... Bd3 {[%clk 0:00:13.9]} 55. Ke1
{[%clk 0:00:03.7]} 55... Re2+ {[%clk 0:00:13.3]} 56. Kd1 {[%clk 0:00:04.1]}
56... Kc3 {[%clk 0:00:13.5]} 57. Rg3 {[%clk 0:00:04.2]} 57... Rxh2 {[%clk
0:00:13.3]} 58. Ke1 {[%clk 0:00:03.7]} 58... Re2+ {[%clk 0:00:12.8]} 59. Kd1
{[%clk 0:00:03.8]} 59... Rf2 {[%clk 0:00:13]} 60. Rg1 {[%clk 0:00:03.1]} 60...
Rf1+ {[%clk 0:00:13.4]} 61. Rxf1 {[%clk 0:00:03.1]} 61... Bxf1 {[%clk
0:00:14.3]} 62. Ke1 {[%clk 0:00:04]} 62... Bd3 {[%clk 0:00:15.2]} 63. Kf2 {[%clk
0:00:04.8]} 63... Kd4 {[%clk 0:00:15.6]} 64. Kg3 {[%clk 0:00:05.7]} 64... Bf5
{[%clk 0:00:16.1]} 65. Kf4 {[%clk 0:00:05.8]} 65... Kd5 {[%clk 0:00:16.7]} 66.
Kg5 {[%clk 0:00:06.2]} 66... Ke5 {[%clk 0:00:17.6]} 67. Kh4 {[%clk 0:00:06.8]}
67... Kf6 {[%clk 0:00:17.3]} 68. Kg3 {[%clk 0:00:07]} 68... g5 {[%clk
0:00:18.2]} 0-1

[Event "Early-Titled-Tuesday-Blitz-April-02-2024"]
[Site "Chess.com"]
[Date "2024.04.02"]
[Round "8"]
[White "Tugrik1969"]
[Black "Josgar05"]
[Result "1-0"]
[WhiteElo "2548"]
[BlackElo "2351"]
[TimeControl "180+1"]
[EndTime "9:29:42 PDT"]
[Termination "Tugrik1969 won by resignation"]

1. d4 {[%clk 0:03:00.9]} 1... d5 {[%clk 0:02:53.9]} 2. c4 {[%clk 0:03:01.3]}
2... dxc4 {[%clk 0:02:48.9]} 3. Nf3 {[%clk 0:03:00.7]} 3... e6 {[%clk
0:02:47.8]} 4. e3 {[%clk 0:03:00.4]} 4... Nf6 {[%clk 0:02:48.3]} 5. Bxc4 {[%clk
0:03:00.2]} 5... c5 {[%clk 0:02:48.9]} 6. O-O {[%clk 0:02:58]} 6... a6 {[%clk
0:02:48.2]} 7. Nc3 {[%clk 0:02:58.1]} 7... Be7 {[%clk 0:02:44.2]} 8. dxc5 {[%clk
0:02:04.8]} 8... Qxd1 {[%clk 0:02:45.1]} 9. Rxd1 {[%clk 0:02:04.5]} 9... Bxc5
{[%clk 0:02:44.6]} 10. Nd2 {[%clk 0:01:57.3]} 10... b5 {[%clk 0:02:41.5]} 11.
Be2 {[%clk 0:01:56.7]} 11... Bb7 {[%clk 0:02:42.1]} 12. Nb3 {[%clk 0:01:56.5]}
12... Bb6 {[%clk 0:02:42.1]} 13. a4 {[%clk 0:01:56.7]} 13... b4 {[%clk
0:02:40.2]} 14. a5 {[%clk 0:01:56.1]} 14... Ba7 {[%clk 0:02:35.4]} 15. Na4
{[%clk 0:01:55.2]} 15... Nbd7 {[%clk 0:02:34.6]} 16. Bd2 {[%clk 0:01:52.4]}
16... Rb8 {[%clk 0:02:31.7]} 17. f3 {[%clk 0:01:32.1]} 17... O-O {[%clk
0:02:29.1]} 18. Rac1 {[%clk 0:01:32.1]} 18... Nd5 {[%clk 0:02:18.9]} 19. Kf2
{[%clk 0:01:25]} 19... Rfc8 {[%clk 0:02:15.6]} 20. Bd3 {[%clk 0:01:06.5]} 20...
Rxc1 {[%clk 0:01:51.4]} 21. Rxc1 {[%clk 0:01:05.7]} 21... Rc8 {[%clk 0:01:52]}
22. Rxc8+ {[%clk 0:01:03]} 22... Bxc8 {[%clk 0:01:52.9]} 23. Ke2 {[%clk
0:01:01.6]} 23... g5 {[%clk 0:01:39.2]} 24. g3 {[%clk 0:00:58.9]} 24... h6
{[%clk 0:01:24.1]} 25. e4 {[%clk 0:00:59]} 25... Ne7 {[%clk 0:01:24.4]} 26. Bxb4
{[%clk 0:00:56.6]} 26... Nc6 {[%clk 0:01:25]} 27. Bc3 {[%clk 0:00:55.8]} 27...
Bg1 {[%clk 0:01:24.1]} 28. h3 {[%clk 0:00:49.4]} 28... Kf8 {[%clk 0:01:20.5]}
29. Nd2 {[%clk 0:00:36]} 29... Ke7 {[%clk 0:01:19.3]} 30. Nc4 {[%clk 0:00:36.4]}
30... Bb7 {[%clk 0:01:13.5]} 31. Nab6 {[%clk 0:00:29.8]} 31... Nc5 {[%clk
0:01:12.3]} 32. Bc2 {[%clk 0:00:24.9]} 32... Nd7 {[%clk 0:01:04.9]} 33. Nxd7
{[%clk 0:00:21.8]} 33... Kxd7 {[%clk 0:01:05.8]} 34. b4 {[%clk 0:00:21.1]} 34...
Ne7 {[%clk 0:01:04.8]} 35. Nb6+ {[%clk 0:00:18.8]} 35... Ke8 {[%clk 0:01:02.6]}
36. Bd3 {[%clk 0:00:15.1]} 36... f5 {[%clk 0:01:02.4]} 37. g4 {[%clk 0:00:13.7]}
37... fxg4 {[%clk 0:01:01.4]} 38. hxg4 {[%clk 0:00:13.5]} 38... Ng6 {[%clk
0:01:00.3]} 39. Kf1 {[%clk 0:00:10]} 39... Be3 {[%clk 0:00:51.9]} 40. Bg7 {[%clk
0:00:09.9]} 40... Nf4 {[%clk 0:00:51.1]} 41. Bc4 {[%clk 0:00:09.6]} 41... Kf7
{[%clk 0:00:46.1]} 42. Be5 {[%clk 0:00:09.2]} 42... Ng6 {[%clk 0:00:43.8]} 43.
Bd6 {[%clk 0:00:08.3]} 43... Bf4 {[%clk 0:00:40.5]} 44. Bc5 {[%clk 0:00:07.5]}
44... Be5 {[%clk 0:00:40]} 45. b5 {[%clk 0:00:07.1]} 45... axb5 {[%clk
0:00:40.1]} 46. Bxb5 {[%clk 0:00:08]} 46... Bc7 {[%clk 0:00:37.3]} 47. a6 {[%clk
0:00:07.7]} 47... Bxb6 {[%clk 0:00:37.4]} 48. Bxb6 {[%clk 0:00:07.3]} 48... Ba8
{[%clk 0:00:37.3]} 49. Bd7 {[%clk 0:00:07.4]} 49... Ne7 {[%clk 0:00:37.2]} 50.
Kf2 {[%clk 0:00:06.4]} 50... Nc6 {[%clk 0:00:36.7]} 51. Ke3 {[%clk 0:00:05.4]}
51... Nb4 {[%clk 0:00:36.2]} 52. Bc8 {[%clk 0:00:04.5]} 52... Ke7 {[%clk
0:00:34.9]} 53. Bb7 {[%clk 0:00:04.6]} 53... Bxb7 {[%clk 0:00:32.2]} 54. axb7
{[%clk 0:00:05.5]} 54... Nc6 {[%clk 0:00:32.9]} 55. Bc7 {[%clk 0:00:05.5]} 55...
Kd7 {[%clk 0:00:27.6]} 56. b8=Q {[%clk 0:00:05.7]} 56... Nxb8 {[%clk 0:00:27.5]}
57. Bxb8 {[%clk 0:00:06.6]} 57... Ke7 {[%clk 0:00:28]} 58. Be5 {[%clk
0:00:07.1]} 58... Kf7 {[%clk 0:00:28.7]} 59. Kd4 {[%clk 0:00:07.1]} 59... Kg6
{[%clk 0:00:29.6]} 60. Kc5 {[%clk 0:00:07.2]} 60... h5 {[%clk 0:00:30.5]} 61.
gxh5+ {[%clk 0:00:07.4]} 61... Kxh5 {[%clk 0:00:31.4]} 62. Kd6 {[%clk
0:00:07.9]} 62... g4 {[%clk 0:00:32.3]} 63. fxg4+ {[%clk 0:00:08.2]} 63... Kxg4
{[%clk 0:00:33.2]} 64. Kxe6 {[%clk 0:00:08.8]} 64... Kf3 {[%clk 0:00:34]} 65.
Kd5 {[%clk 0:00:09.5]} 65... Kg4 {[%clk 0:00:33.8]} 66. Bd6 {[%clk 0:00:09.3]}
66... Kg5 {[%clk 0:00:33.9]} 67. Ke6 {[%clk 0:00:09.3]} 67... Kg4 {[%clk
0:00:31.7]} 68. e5 {[%clk 0:00:09.6]} 68... Kf4 {[%clk 0:00:31.9]} 69. Kf7
{[%clk 0:00:09.5]} 1-0

[Event "Early-Titled-Tuesday-Blitz-April-02-2024"]
[Site "Chess.com"]
[Date "2024.04.02"]
[Round "8"]
[White "eljanov"]
[Black "wqws"]
[Result "1-0"]
[WhiteElo "2894"]
[BlackElo "2724"]
[TimeControl "180+1"]
[EndTime "9:29:46 PDT"]
[Termination "eljanov won by resignation"]

1. d4 {[%clk 0:02:57.7]} 1... Nf6 {[%clk 0:02:59.7]} 2. Nf3 {[%clk 0:02:57]}
2... g6 {[%clk 0:02:59.6]} 3. c4 {[%clk 0:02:55.5]} 3... Bg7 {[%clk 0:03:00]} 4.
Nc3 {[%clk 0:02:56.4]} 4... O-O {[%clk 0:03:00.4]} 5. e4 {[%clk 0:02:55.7]} 5...
d6 {[%clk 0:03:00.8]} 6. Be2 {[%clk 0:02:56.6]} 6... e5 {[%clk 0:03:00.9]} 7.
O-O {[%clk 0:02:57.1]} 7... Nc6 {[%clk 0:03:01.2]} 8. d5 {[%clk 0:02:57.4]} 8...
Ne7 {[%clk 0:03:01.6]} 9. b4 {[%clk 0:02:58.1]} 9... a5 {[%clk 0:03:00.6]} 10.
bxa5 {[%clk 0:02:58.5]} 10... Rxa5 {[%clk 0:03:00.8]} 11. a4 {[%clk 0:02:58.5]}
11... Nd7 {[%clk 0:02:58]} 12. Be3 {[%clk 0:02:50.5]} 12... f5 {[%clk
0:02:53.1]} 13. Ng5 {[%clk 0:02:50.5]} 13... Nf6 {[%clk 0:02:52.6]} 14. Qb3
{[%clk 0:02:29.6]} 14... fxe4 {[%clk 0:02:34.4]} 15. Ncxe4 {[%clk 0:02:28.3]}
15... Nf5 {[%clk 0:02:30.8]} 16. Nxf6+ {[%clk 0:02:21.4]} 16... Qxf6 {[%clk
0:02:29.3]} 17. Bd2 {[%clk 0:02:04.8]} 17... Nd4 {[%clk 0:02:24.2]} 18. Qd1
{[%clk 0:02:04.2]} 18... Ra8 {[%clk 0:02:18]} 19. Be3 {[%clk 0:01:55.4]} 19...
Bf5 {[%clk 0:02:07.3]} 20. Bd3 {[%clk 0:01:45.2]} 20... h6 {[%clk 0:01:46.1]}
21. Ne4 {[%clk 0:01:44.8]} 21... Qh4 {[%clk 0:01:42.1]} 22. f3 {[%clk
0:01:42.7]} 22... Bd7 {[%clk 0:01:39.8]} 23. c5 {[%clk 0:01:34.4]} 23... dxc5
{[%clk 0:01:00.2]} 24. Nxc5 {[%clk 0:01:32.2]} 24... Bf5 {[%clk 0:01:00.5]} 25.
Bxf5 {[%clk 0:01:24]} 25... Rxf5 {[%clk 0:00:53.7]} 26. Rb1 {[%clk 0:00:56.7]}
26... Rh5 {[%clk 0:00:52.5]} 27. h3 {[%clk 0:00:54.8]} 27... Nf5 {[%clk
0:00:36.8]} 28. Bf2 {[%clk 0:00:54]} 28... Qg5 {[%clk 0:00:29.9]} 29. Ne4 {[%clk
0:00:51.7]} 29... Qf4 {[%clk 0:00:29.7]} 30. g3 {[%clk 0:00:46.1]} 30... Rg5
{[%clk 0:00:25.6]} 31. Kh2 {[%clk 0:00:46.3]} 31... Rxg3 {[%clk 0:00:19]} 32.
Bxg3 {[%clk 0:00:36.6]} 32... Nxg3 {[%clk 0:00:18.6]} 33. Nxg3 {[%clk
0:00:36.9]} 33... Rxa4 {[%clk 0:00:18.9]} 34. Kg2 {[%clk 0:00:33.1]} 34... e4
{[%clk 0:00:14]} 35. Qb3 {[%clk 0:00:18.9]} 35... Be5 {[%clk 0:00:11.4]} 36.
fxe4 {[%clk 0:00:16.2]} 36... Ra2+ {[%clk 0:00:11.2]} 37. Kh1 {[%clk 0:00:15.1]}
37... Qd2 {[%clk 0:00:09.7]} 38. d6+ {[%clk 0:00:12.8]} 38... Kh7 {[%clk
0:00:04.7]} 39. Rf7+ {[%clk 0:00:11.9]} 39... Bg7 {[%clk 0:00:04.8]} 40. Rxg7+
{[%clk 0:00:11.3]} 40... Kxg7 {[%clk 0:00:05.3]} 41. Nf5+ {[%clk 0:00:08.9]}
41... gxf5 {[%clk 0:00:04.8]} 42. Qg3+ {[%clk 0:00:06]} 42... Kf7 {[%clk
0:00:03.2]} 43. Rf1 {[%clk 0:00:06.1]} 43... Qxd6 {[%clk 0:00:02.2]} 44. Rxf5+
{[%clk 0:00:05.3]} 44... Ke8 {[%clk 0:00:02.8]} 45. Qg8+ {[%clk 0:00:05.1]}
45... Kd7 {[%clk 0:00:03.3]} 46. Qxa2 {[%clk 0:00:02.3]} 46... Qd1+ {[%clk
0:00:03.6]} 47. Kh2 {[%clk 0:00:02.7]} 47... c6 {[%clk 0:00:04]} 48. Rf7+ {[%clk
0:00:02.5]} 48... Kc8 {[%clk 0:00:04.3]} 49. Rf2 {[%clk 0:00:02.5]} 49... Qd6+
{[%clk 0:00:03.8]} 50. Kh1 {[%clk 0:00:02.1]} 50... Kc7 {[%clk 0:00:04.3]} 51.
Qd2 {[%clk 0:00:01.7]} 51... Qe5 {[%clk 0:00:04.3]} 52. Qf4 {[%clk 0:00:01.9]}
52... Qxf4 {[%clk 0:00:04.4]} 53. Rxf4 {[%clk 0:00:02.6]} 53... b5 {[%clk
0:00:05]} 54. Rf6 {[%clk 0:00:02.1]} 54... b4 {[%clk 0:00:05.2]} 55. Kg2 {[%clk
0:00:02.4]} 55... b3 {[%clk 0:00:04.7]} 56. Rf3 {[%clk 0:00:02.6]} 56... b2
{[%clk 0:00:04.4]} 57. Rb3 {[%clk 0:00:02.7]} 57... Kd6 {[%clk 0:00:05.1]} 58.
Rxb2 {[%clk 0:00:03]} 58... Ke5 {[%clk 0:00:06]} 59. Kf3 {[%clk 0:00:03.5]}
59... Kd4 {[%clk 0:00:06.2]} 60. Rd2+ {[%clk 0:00:03.7]} 60... Ke5 {[%clk
0:00:06.6]} 61. Rc2 {[%clk 0:00:03.9]} 61... c5 {[%clk 0:00:07.5]} 62. Rxc5+
{[%clk 0:00:04]} 62... Kd4 {[%clk 0:00:08.4]} 63. Rd5+ {[%clk 0:00:04.5]} 1-0

[Event "Early-Titled-Tuesday-Blitz-April-02-2024"]
[Site "Chess.com"]
[Date "2024.04.02"]
[Round "8"]
[White "GodzillaChessYoutube"]
[Black "TrompeterImEther"]
[Result "0-1"]
[WhiteElo "2692"]
[BlackElo "2571"]
[TimeControl "180+1"]
[EndTime "9:29:46 PDT"]
[Termination "TrompeterImEther won by resignation"]

1. Nh3 {[%clk 0:03:00.2]} 1... Nf6 {[%clk 0:02:56.4]} 2. d4 {[%clk 0:03:01.1]}
2... g6 {[%clk 0:02:56.5]} 3. Nf4 {[%clk 0:03:01.1]} 3... Bg7 {[%clk 0:02:56.6]}
4. h4 {[%clk 0:03:01.5]} 4... h5 {[%clk 0:02:56.3]} 5. c4 {[%clk 0:02:58.1]}
5... c6 {[%clk 0:02:52.4]} 6. Nc3 {[%clk 0:02:57.4]} 6... d5 {[%clk 0:02:52.6]}
7. e3 {[%clk 0:02:56.9]} 7... O-O {[%clk 0:02:52.3]} 8. Be2 {[%clk 0:02:53.5]}
8... Bf5 {[%clk 0:02:51.7]} 9. Qb3 {[%clk 0:02:50.9]} 9... dxc4 {[%clk
0:02:49.5]} 10. Bxc4 {[%clk 0:02:50.5]} 10... b5 {[%clk 0:02:48.1]} 11. Be2
{[%clk 0:02:47.6]} 11... Nbd7 {[%clk 0:02:45.4]} 12. f3 {[%clk 0:02:45.7]} 12...
e5 {[%clk 0:02:35.4]} 13. dxe5 {[%clk 0:02:40.9]} 13... Nxe5 {[%clk 0:02:36.3]}
14. e4 {[%clk 0:02:40.6]} 14... Bd7 {[%clk 0:02:35.1]} 15. Be3 {[%clk
0:02:37.6]} 15... Kh7 {[%clk 0:02:34.7]} 16. Rd1 {[%clk 0:02:35.1]} 16... Re8
{[%clk 0:02:30.8]} 17. O-O {[%clk 0:02:13.7]} 17... Qc7 {[%clk 0:02:27.7]} 18.
Rd2 {[%clk 0:02:06]} 18... Be6 {[%clk 0:02:27.8]} 19. Nxe6 {[%clk 0:02:05.2]}
19... Rxe6 {[%clk 0:02:28.7]} 20. Rfd1 {[%clk 0:02:01.8]} 20... a6 {[%clk
0:02:26]} 21. a4 {[%clk 0:01:59.8]} 21... Rae8 {[%clk 0:02:23.1]} 22. Kf1 {[%clk
0:01:55.1]} 22... Qe7 {[%clk 0:02:20.1]} 23. Na2 {[%clk 0:01:40.7]} 23... Ng8
{[%clk 0:02:17]} 24. Bf2 {[%clk 0:01:39.8]} 24... Bh6 {[%clk 0:02:12.2]} 25. Rc2
{[%clk 0:01:39]} 25... Nf6 {[%clk 0:02:11.2]} 26. Nb4 {[%clk 0:01:37.8]} 26...
Qb7 {[%clk 0:02:08.9]} 27. a5 {[%clk 0:01:27.1]} 27... R8e7 {[%clk 0:01:48.4]}
28. Qc3 {[%clk 0:01:26.8]} 28... Rd7 {[%clk 0:01:45.1]} 29. Bg3 {[%clk
0:01:18.6]} 29... Nc4 {[%clk 0:01:40.1]} 30. Rxd7 {[%clk 0:01:09.8]} 30... Qxd7
{[%clk 0:01:37.9]} 31. Bxc4 {[%clk 0:01:08.2]} 31... bxc4 {[%clk 0:01:30.3]} 32.
Qxc4 {[%clk 0:01:04.3]} 32... Qd1+ {[%clk 0:01:29.3]} 33. Be1 {[%clk 0:01:04.4]}
33... Nd5 {[%clk 0:01:14.3]} 34. Nxd5 {[%clk 0:00:51.4]} 34... cxd5 {[%clk
0:01:15.2]} 35. Qe2 {[%clk 0:00:51.9]} 35... Qb1 {[%clk 0:01:14]} 36. e5 {[%clk
0:00:47.1]} 36... Bf4 {[%clk 0:01:09.7]} 37. Qf2 {[%clk 0:00:13.1]} 37... Rxe5
{[%clk 0:00:56.8]} 38. Re2 {[%clk 0:00:10.6]} 38... Qd3 {[%clk 0:00:56.8]} 39.
Bc3 {[%clk 0:00:09.9]} 39... Bg3 {[%clk 0:00:49.7]} 40. Bxe5 {[%clk 0:00:08.8]}
40... Bxf2 {[%clk 0:00:48.5]} 41. Kxf2 {[%clk 0:00:09.7]} 41... Qf5 {[%clk
0:00:34]} 42. g3 {[%clk 0:00:08.9]} 42... f6 {[%clk 0:00:34.4]} 43. Bd4 {[%clk
0:00:08.8]} 43... g5 {[%clk 0:00:33.2]} 44. Rd2 {[%clk 0:00:08.3]} 44... Kg6
{[%clk 0:00:33]} 45. Be3 {[%clk 0:00:07.8]} 45... Qe6 {[%clk 0:00:29.1]} 46. Rd4
{[%clk 0:00:06.7]} 46... g4 {[%clk 0:00:28.5]} 47. fxg4 {[%clk 0:00:06.3]} 47...
hxg4 {[%clk 0:00:29.4]} 48. b4 {[%clk 0:00:06.7]} 48... f5 {[%clk 0:00:29.4]}
49. Rf4 {[%clk 0:00:05.6]} 49... Qe5 {[%clk 0:00:25.5]} 50. Bd4 {[%clk
0:00:05.8]} 50... Qe8 {[%clk 0:00:23.6]} 51. Bc5 {[%clk 0:00:05.8]} 51... Qa4
{[%clk 0:00:21.9]} 52. Rd4 {[%clk 0:00:06.1]} 52... Qc2+ {[%clk 0:00:20.9]} 53.
Ke3 {[%clk 0:00:06.4]} 53... Qc3+ {[%clk 0:00:20.3]} 54. Kf4 {[%clk 0:00:05.1]}
54... Qf3+ {[%clk 0:00:20.2]} 55. Ke5 {[%clk 0:00:05.6]} 55... Qxg3+ {[%clk
0:00:20.9]} 56. Kxd5 {[%clk 0:00:06.5]} 56... Qf3+ {[%clk 0:00:20.6]} 57. Ke6
{[%clk 0:00:06.1]} 57... g3 {[%clk 0:00:21]} 58. Rd6 {[%clk 0:00:04.9]} 58... g2
{[%clk 0:00:20.6]} 59. Ke7+ {[%clk 0:00:05]} 59... Kh5 {[%clk 0:00:21.1]} 60.
Rd4 {[%clk 0:00:01.4]} 60... g1=Q {[%clk 0:00:19.9]} 61. Rd6 {[%clk 0:00:02.3]}
61... Qg7+ {[%clk 0:00:19.3]} 0-1

[Event "Early-Titled-Tuesday-Blitz-April-02-2024"]
[Site "Chess.com"]
[Date "2024.04.02"]
[Round "8"]
[White "bilelou"]
[Black "SuperJesus88"]
[Result "0-1"]
[WhiteElo "2649"]
[BlackElo "2553"]
[TimeControl "180+1"]
[EndTime "9:29:46 PDT"]
[Termination "SuperJesus88 won on time"]

1. e4 {[%clk 0:03:00.9]} 1... e6 {[%clk 0:02:59.4]} 2. d4 {[%clk 0:02:58.7]}
2... d5 {[%clk 0:02:59.8]} 3. e5 {[%clk 0:02:57.5]} 3... b6 {[%clk 0:02:59.7]}
4. c3 {[%clk 0:02:56.3]} 4... Qd7 {[%clk 0:02:59.6]} 5. a4 {[%clk 0:02:53.4]}
5... Ba6 {[%clk 0:02:53.7]} 6. Bxa6 {[%clk 0:02:53.5]} 6... Nxa6 {[%clk
0:02:51.8]} 7. Qd3 {[%clk 0:02:52]} 7... Nb8 {[%clk 0:02:47.9]} 8. Ne2 {[%clk
0:02:50.5]} 8... c5 {[%clk 0:02:47.9]} 9. O-O {[%clk 0:02:50.6]} 9... Nc6 {[%clk
0:02:41.8]} 10. Nd2 {[%clk 0:02:47.8]} 10... Nge7 {[%clk 0:02:30.5]} 11. Nf3
{[%clk 0:02:42.8]} 11... h6 {[%clk 0:02:17.6]} 12. Ng3 {[%clk 0:02:31.8]} 12...
c4 {[%clk 0:02:15.2]} 13. Qd1 {[%clk 0:02:16.2]} 13... Na5 {[%clk 0:02:14.5]}
14. Be3 {[%clk 0:02:15.6]} 14... Nb3 {[%clk 0:02:14]} 15. Ra2 {[%clk 0:02:13.2]}
15... O-O-O {[%clk 0:02:12.2]} 16. Nd2 {[%clk 0:02:12.2]} 16... Na5 {[%clk
0:02:10.8]} 17. b3 {[%clk 0:02:04.7]} 17... cxb3 {[%clk 0:01:59.7]} 18. Nxb3
{[%clk 0:02:05.6]} 18... Nec6 {[%clk 0:01:59.8]} 19. Nd2 {[%clk 0:02:02.4]}
19... Be7 {[%clk 0:01:49.6]} 20. Nh5 {[%clk 0:01:59.3]} 20... g6 {[%clk
0:01:46.7]} 21. Nf6 {[%clk 0:01:59]} 21... Bxf6 {[%clk 0:01:45.8]} 22. exf6
{[%clk 0:01:59.9]} 22... g5 {[%clk 0:01:45.2]} 23. Qe2 {[%clk 0:01:57.5]} 23...
Kb7 {[%clk 0:01:44.9]} 24. Rb1 {[%clk 0:01:56]} 24... Rc8 {[%clk 0:01:39.1]} 25.
Rab2 {[%clk 0:01:54.5]} 25... Nb8 {[%clk 0:01:33.1]} 26. Rb5 {[%clk 0:01:52.7]}
26... Ka8 {[%clk 0:01:26.7]} 27. Nb3 {[%clk 0:01:39]} 27... Nxb3 {[%clk
0:01:24.6]} 28. R1xb3 {[%clk 0:01:39.9]} 28... Nc6 {[%clk 0:01:24.2]} 29. h4
{[%clk 0:01:31.9]} 29... Na5 {[%clk 0:01:22.1]} 30. Ra3 {[%clk 0:01:28.9]} 30...
gxh4 {[%clk 0:01:13.6]} 31. Bf4 {[%clk 0:01:28.4]} 31... Rhg8 {[%clk 0:01:09.4]}
32. Bxh6 {[%clk 0:01:09.7]} 32... Qd6 {[%clk 0:00:52]} 33. Ra1 {[%clk
0:00:59.2]} 33... Rg6 {[%clk 0:00:44.3]} 34. Bg7 {[%clk 0:00:58.7]} 34... Rxc3
{[%clk 0:00:34]} 35. Rxa5 {[%clk 0:00:43.8]} 35... bxa5 {[%clk 0:00:21.8]} 36.
Qb5 {[%clk 0:00:42.8]} 36... Qc6 {[%clk 0:00:16]} 37. Qb1 {[%clk 0:00:25.1]}
37... h3 {[%clk 0:00:14]} 38. Qxg6 {[%clk 0:00:23.4]} 38... Rc1+ {[%clk
0:00:12.3]} 39. Kh2 {[%clk 0:00:20.3]} 39... fxg6 {[%clk 0:00:04.9]} 40. f7
{[%clk 0:00:17.2]} 40... Qc7+ {[%clk 0:00:05.1]} 41. Be5 {[%clk 0:00:16.3]}
41... Qxf7 {[%clk 0:00:05.6]} 42. Rxc1 {[%clk 0:00:15.7]} 42... Qxf2 {[%clk
0:00:05.4]} 43. Rc8+ {[%clk 0:00:12.9]} 43... Kb7 {[%clk 0:00:05.7]} 44. Rb8+
{[%clk 0:00:13.2]} 44... Kc6 {[%clk 0:00:04.6]} 45. Kxh3 {[%clk 0:00:14.1]}
45... Qf5+ {[%clk 0:00:04.1]} 46. Kh2 {[%clk 0:00:12.3]} 46... Qg4 {[%clk
0:00:03.1]} 47. Rb5 {[%clk 0:00:10]} 47... a6 {[%clk 0:00:02.7]} 48. Rxa5 {[%clk
0:00:08.9]} 48... Kb6 {[%clk 0:00:02.9]} 49. Rc5 {[%clk 0:00:08.7]} 49... Qh5+
{[%clk 0:00:03.2]} 50. Kg1 {[%clk 0:00:06.7]} 50... Qe2 {[%clk 0:00:04.1]} 51.
a5+ {[%clk 0:00:06]} 51... Kb7 {[%clk 0:00:03.5]} 52. Rc7+ {[%clk 0:00:06]}
52... Ka8 {[%clk 0:00:04.1]} 53. Rc8+ {[%clk 0:00:04.9]} 53... Ka7 {[%clk
0:00:04.7]} 54. Rc7+ {[%clk 0:00:05.4]} 54... Ka8 {[%clk 0:00:05.3]} 55. Kh1
{[%clk 0:00:04.4]} 55... Qe1+ {[%clk 0:00:04.9]} 56. Kh2 {[%clk 0:00:04.5]}
56... Qh4+ {[%clk 0:00:05.5]} 57. Kg1 {[%clk 0:00:04.6]} 57... Qe1+ {[%clk
0:00:06.2]} 58. Kh2 {[%clk 0:00:04.8]} 58... Qxa5 {[%clk 0:00:07.1]} 59. Rc8+
{[%clk 0:00:03.8]} 59... Kb7 {[%clk 0:00:07.5]} 60. Rb8+ {[%clk 0:00:04.3]}
60... Kc6 {[%clk 0:00:07.4]} 61. Re8 {[%clk 0:00:04.6]} 61... Qe1 {[%clk
0:00:06.5]} 62. Rxe6+ {[%clk 0:00:04.2]} 62... Kb5 {[%clk 0:00:07.1]} 63. Rxg6
{[%clk 0:00:04]} 63... Kc4 {[%clk 0:00:07.3]} 64. Rxa6 {[%clk 0:00:01.6]} 64...
Kd3 {[%clk 0:00:07.3]} 0-1